[Event "January 2 Early 2024"]
[Site "https://www.chess.com"]
[Date "2024.01.02"]
[Round "7"]
[White "Mikhalsky, Vladimir"]
[Black "Korchynskyi, Mykola"]
[Result "1-0"]
[Board "106"]
[TimeControl "180+1"]
[WhiteFideId "14144352"]
[BlackFideId "34138005"]
[WhiteElo "2411"]
[BlackElo "2561"]
[WhiteTeam "UKR"]
[BlackTeam "UKR"]
[WhiteClock "0:00:08"]
[BlackClock "0:00:00"]

1. d4 {[%clk 0:02:55]}  d5 {[%clk 0:02:56]} 2. c4 {[%clk 0:02:55]}  e6 {[%clk 0:02:56]} 3. Nf3 {[%clk 0:02:54]}  Nf6 {[%clk 0:02:56]} 4. g3 {[%clk 0:02:55]}  Be7 {[%clk 0:02:55]} 5. Bg2 {[%clk 0:02:55]}  O-O {[%clk 0:02:55]} 6. O-O {[%clk 0:02:55]}  b6 {[%clk 0:02:54]} 7. Nc3 {[%clk 0:02:53]}  Bb7 {[%clk 0:02:55]} 8. Qc2 {[%clk 0:02:51]}  dxc4 {[%clk 0:02:54]} 9. e4 {[%clk 0:02:48]}  Nbd7 {[%clk 0:02:52]} 10. Rd1 {[%clk 0:02:47]}  Qc8 {[%clk 0:02:52]} 11. d5 {[%clk 0:02:26]}  exd5 {[%clk 0:02:48]} 12. exd5 {[%clk 0:02:26]}  a6 {[%clk 0:02:39]} 13. a4 {[%clk 0:02:24]}  Nc5 {[%clk 0:02:35]} 14. Ne5 {[%clk 0:02:10]}  Rd8 {[%clk 0:02:28]} 15. Nxc4 {[%clk 0:02:08]}  Qg4 {[%clk 0:02:25]} 16. Ne3 {[%clk 0:01:59]}  Qh5 {[%clk 0:02:23]} 17. b4 {[%clk 0:01:56]}  Ncd7 {[%clk 0:02:09]} 18. h3 {[%clk 0:01:56]}  Bd6 {[%clk 0:02:07]} 19. Nf5 {[%clk 0:01:45]}  Bxb4 {[%clk 0:01:52]} 20. Bf4 {[%clk 0:01:38]}  Rac8 {[%clk 0:01:47]} 21. g4 {[%clk 0:01:21]}  Qg6 {[%clk 0:01:36]} 22. Qb3 {[%clk 0:01:12]}  a5 {[%clk 0:01:26]} 23. Nh4 {[%clk 0:01:09]}  Nc5 {[%clk 0:01:22]} 24. Qa2 {[%clk 0:00:56]}  Bxc3 {[%clk 0:01:06]} 25. Nxg6 {[%clk 0:00:55]}  hxg6 {[%clk 0:00:59]} 26. Rac1 {[%clk 0:00:54]}  Bb4 {[%clk 0:00:59]} 27. d6 {[%clk 0:00:45]}  Bxg2 {[%clk 0:00:49]} 28. Kxg2 {[%clk 0:00:41]}  cxd6 {[%clk 0:00:48]} 29. Rxd6 {[%clk 0:00:40]}  Rxd6 {[%clk 0:00:47]} 30. Bxd6 {[%clk 0:00:40]}  Nfe4 {[%clk 0:00:48]} 31. Bxc5 {[%clk 0:00:39]}  Bxc5 {[%clk 0:00:46]} 32. Rc2 {[%clk 0:00:30]}  Rd8 {[%clk 0:00:43]} 33. Qc4 {[%clk 0:00:22]}  Rd4 {[%clk 0:00:39]} 34. Qb5 {[%clk 0:00:22]}  Nd6 {[%clk 0:00:32]} 35. Qc6 {[%clk 0:00:21]}  Kh7 {[%clk 0:00:21]} 36. Rxc5 {[%clk 0:00:21]}  bxc5 {[%clk 0:00:22]} 37. Qxc5 {[%clk 0:00:21]}  Rd2 {[%clk 0:00:18]} 38. Qxa5 {[%clk 0:00:20]}  Ne4 {[%clk 0:00:18]} 39. Kf3 {[%clk 0:00:15]}  Rxf2+ {[%clk 0:00:13]} 40. Kxe4 {[%clk 0:00:15]}  Rh2 {[%clk 0:00:14]} 41. Qc3 {[%clk 0:00:15]}  Ra2 {[%clk 0:00:13]} 42. Qb3 {[%clk 0:00:15]}  Re2+ {[%clk 0:00:12]} 43. Kf3 {[%clk 0:00:15]}  Re7 {[%clk 0:00:13]} 44. Kg3 {[%clk 0:00:15]}  f5 {[%clk 0:00:13]} 45. g5 {[%clk 0:00:15]}  Re1 {[%clk 0:00:11]} 46. a5 {[%clk 0:00:15]}  Rg1+ {[%clk 0:00:12]} 47. Kh2 {[%clk 0:00:12]}  Ra1 {[%clk 0:00:08]} 48. Qd5 {[%clk 0:00:12]}  Ra3 {[%clk 0:00:03]} 49. h4 {[%clk 0:00:12]}  f4 {[%clk 0:00:03]} 50. Qc5 {[%clk 0:00:11]}  Ra2+ {[%clk 0:00:03]} 51. Kh3 {[%clk 0:00:11]}  f3 {[%clk 0:00:03]} 52. Kg3 {[%clk 0:00:11]}  f2 {[%clk 0:00:04]} 53. Kg2 {[%clk 0:00:11]}  Kh8 {[%clk 0:00:04]} 54. Qb5 {[%clk 0:00:11]}  Kh7 {[%clk 0:00:02]} 55. a6 {[%clk 0:00:11]}  Ra1 {[%clk 0:00:01]} 56. Kxf2 {[%clk 0:00:10]}  Ra2+ {[%clk 0:00:02]} 57. Kg3 {[%clk 0:00:10]}  Ra3+ {[%clk 0:00:03]} 58. Kf4 {[%clk 0:00:09]}  Rh3 {[%clk 0:00:03]} 59. Kg4 {[%clk 0:00:09]}  Rb3 {[%clk 0:00:00]} 60. Qxb3 {[%clk 0:00:08]} 1-0

[Event "January 2 Early 2024"]
[Site "https://www.chess.com"]
[Date "2024.01.02"]
[Round "7"]
[White "Womacka, Mathias"]
[Black "Legenia, Artem"]
[Result "1-0"]
[Board "108"]
[TimeControl "180+1"]
[WhiteFideId "4611390"]
[BlackFideId "14136945"]
[WhiteElo "2548"]
[BlackElo "2382"]
[WhiteTeam "GER"]
[BlackTeam "UKR"]
[WhiteClock "0:01:43"]
[BlackClock "0:00:16"]

1. e4 {[%clk 0:03:00]}  c5 {[%clk 0:02:59]} 2. Nf3 {[%clk 0:02:59]}  g6 {[%clk 0:02:58]} 3. d4 {[%clk 0:02:59]}  cxd4 {[%clk 0:02:59]} 4. Nxd4 {[%clk 0:02:59]}  Bg7 {[%clk 0:02:55]} 5. c4 {[%clk 0:03:00]}  Nc6 {[%clk 0:02:53]} 6. Be3 {[%clk 0:03:00]}  Nf6 {[%clk 0:02:52]} 7. Nc3 {[%clk 0:03:01]}  d6 {[%clk 0:02:51]} 8. Be2 {[%clk 0:03:00]}  O-O {[%clk 0:02:49]} 9. O-O {[%clk 0:03:00]}  Nxd4 {[%clk 0:02:49]} 10. Bxd4 {[%clk 0:02:59]}  Qa5 {[%clk 0:02:46]} 11. Rb1 {[%clk 0:02:49]}  Be6 {[%clk 0:02:32]} 12. b4 {[%clk 0:02:48]}  Qc7 {[%clk 0:02:30]} 13. Nd5 {[%clk 0:02:46]}  Bxd5 {[%clk 0:02:21]} 14. exd5 {[%clk 0:02:47]}  e6 {[%clk 0:01:58]} 15. dxe6 {[%clk 0:02:46]}  fxe6 {[%clk 0:01:57]} 16. Qd3 {[%clk 0:02:37]}  b6 {[%clk 0:01:45]} 17. Rbd1 {[%clk 0:02:09]}  Rad8 {[%clk 0:01:45]} 18. Rfe1 {[%clk 0:01:52]}  e5 {[%clk 0:01:22]} 19. Be3 {[%clk 0:01:49]}  d5 {[%clk 0:01:22]} 20. cxd5 {[%clk 0:01:48]}  Nxd5 {[%clk 0:01:18]} 21. Qb3 {[%clk 0:01:46]}  Qc3 {[%clk 0:00:36]} 22. Bc4 {[%clk 0:01:46]}  Qxb3 {[%clk 0:00:27]} 23. Bxb3 {[%clk 0:01:44]}  Kh8 {[%clk 0:00:19]} 24. Rxd5 {[%clk 0:01:42]}  Rxd5 {[%clk 0:00:16]} 25. Bxd5 {[%clk 0:01:43]} 1-0

[Event "January 2 Early 2024"]
[Site "https://www.chess.com"]
[Date "2024.01.02"]
[Round "7"]
[White "Rogov, Matfey"]
[Black "Weisz, Bryan"]
[Result "0-1"]
[Board "110"]
[TimeControl "180+1"]
[WhiteFideId "44191308"]
[BlackFideId "30934133"]
[WhiteElo "2542"]
[BlackElo "2504"]
[WhiteTeam "RUS"]
[BlackTeam "USA"]
[WhiteClock "0:00:01"]
[BlackClock "0:00:19"]

1. Nc3 {[%clk 0:03:00]}  e5 {[%clk 0:01:57]} 2. Nf3 {[%clk 0:02:43]}  Nc6 {[%clk 0:01:52]} 3. d4 {[%clk 0:02:43]}  exd4 {[%clk 0:01:51]} 4. Nxd4 {[%clk 0:02:44]}  Nf6 {[%clk 0:01:46]} 5. Bg5 {[%clk 0:02:44]}  Bb4 {[%clk 0:01:39]} 6. Nxc6 {[%clk 0:02:41]}  bxc6 {[%clk 0:01:37]} 7. Qd4 {[%clk 0:02:41]}  Be7 {[%clk 0:01:31]} 8. e4 {[%clk 0:02:37]}  O-O {[%clk 0:01:23]} 9. e5 {[%clk 0:02:28]}  Nd5 {[%clk 0:01:11]} 10. Bxe7 {[%clk 0:02:23]}  Qxe7 {[%clk 0:01:07]} 11. Nxd5 {[%clk 0:02:23]}  cxd5 {[%clk 0:01:06]} 12. Bd3 {[%clk 0:02:14]}  Rb8 {[%clk 0:00:56]} 13. a3 {[%clk 0:02:06]}  c5 {[%clk 0:00:51]} 14. Qxd5 {[%clk 0:01:57]}  Bb7 {[%clk 0:00:51]} 15. Qd6 {[%clk 0:01:55]}  Qg5 {[%clk 0:00:50]} 16. h4 {[%clk 0:01:45]}  Qxg2 {[%clk 0:00:45]} 17. O-O-O {[%clk 0:01:45]}  Qxf2 {[%clk 0:00:41]} 18. Rhg1 {[%clk 0:01:34]}  c4 {[%clk 0:00:37]} 19. Qh6 {[%clk 0:01:07]}  g6 {[%clk 0:00:34]} 20. Rdf1 {[%clk 0:00:17]}  Qd4 {[%clk 0:00:20]} 21. Be2 {[%clk 0:00:01]}  Qxe5 {[%clk 0:00:18]} 22. h5 {[%clk 0:00:01]}  Be4 {[%clk 0:00:18]} 23. hxg6 {[%clk 0:00:01]}  Qxb2+ {[%clk 0:00:17]} 24. Kd1 {[%clk 0:00:02]}  Qxc2+ {[%clk 0:00:18]} 25. Ke1 {[%clk 0:00:02]}  Qc3+ {[%clk 0:00:17]} 26. Kf2 {[%clk 0:00:02]}  fxg6+ {[%clk 0:00:18]} 27. Bf3 {[%clk 0:00:01]}  Rxf3+ {[%clk 0:00:17]} 28. Ke2 {[%clk 0:00:01]}  Qd3+ {[%clk 0:00:18]} 29. Ke1 {[%clk 0:00:01]}  Rb1+ {[%clk 0:00:18]} 30. Qc1 {[%clk 0:00:01]}  Rxc1# {[%clk 0:00:19]} 0-1

[Event "January 2 Early 2024"]
[Site "https://www.chess.com"]
[Date "2024.01.02"]
[Round "7"]
[White "Kochiev, Ivan"]
[Black "Preobrazhenskaya, Diana"]
[Result "1-0"]
[Board "111"]
[TimeControl "180+1"]
[WhiteFideId "2917890"]
[BlackFideId "34270566"]
[WhiteElo "2536"]
[BlackElo "2358"]
[WhiteTeam "BUL"]
[BlackTeam "FID"]
[WhiteClock "0:01:49"]
[BlackClock "0:00:00"]

1. e4 {[%clk 0:03:00]}  c5 {[%clk 0:02:59]} 2. Nf3 {[%clk 0:03:01]}  d6 {[%clk 0:03:00]} 3. d4 {[%clk 0:03:01]}  cxd4 {[%clk 0:03:00]} 4. Nxd4 {[%clk 0:03:02]}  Nf6 {[%clk 0:03:00]} 5. f3 {[%clk 0:03:03]}  a6 {[%clk 0:02:55]} 6. c4 {[%clk 0:03:03]}  Nbd7 {[%clk 0:02:46]} 7. Nc3 {[%clk 0:03:03]}  e6 {[%clk 0:02:46]} 8. Be3 {[%clk 0:03:03]}  Be7 {[%clk 0:02:46]} 9. Be2 {[%clk 0:03:03]}  h5 {[%clk 0:02:44]} 10. O-O {[%clk 0:03:03]}  O-O {[%clk 0:02:42]} 11. Qd2 {[%clk 0:03:03]}  Qc7 {[%clk 0:02:34]} 12. Rac1 {[%clk 0:03:02]}  b6 {[%clk 0:02:33]} 13. b4 {[%clk 0:03:03]}  Bb7 {[%clk 0:02:32]} 14. Nb3 {[%clk 0:03:00]}  Ne5 {[%clk 0:02:18]} 15. Na4 {[%clk 0:02:56]}  Ned7 {[%clk 0:02:15]} 16. Rfd1 {[%clk 0:02:54]}  Rfd8 {[%clk 0:02:06]} 17. Bf1 {[%clk 0:02:53]}  Rac8 {[%clk 0:02:04]} 18. Qf2 {[%clk 0:02:50]}  Rb8 {[%clk 0:01:38]} 19. Nxb6 {[%clk 0:02:49]}  Ne5 {[%clk 0:01:32]} 20. Na4 {[%clk 0:02:47]}  Rdc8 {[%clk 0:01:12]} 21. Bb6 {[%clk 0:02:24]}  Qc6 {[%clk 0:01:10]} 22. b5 {[%clk 0:02:15]}  Qe8 {[%clk 0:01:00]} 23. Ba7 {[%clk 0:02:07]}  Ra8 {[%clk 0:00:49]} 24. Nb6 {[%clk 0:02:03]}  Rxa7 {[%clk 0:00:31]} 25. Nxc8 {[%clk 0:02:03]}  Qxc8 {[%clk 0:00:30]} 26. Qxa7 {[%clk 0:02:03]}  Nfd7 {[%clk 0:00:06]} 27. bxa6 {[%clk 0:01:59]}  Bxa6 {[%clk 0:00:06]} 28. c5 {[%clk 0:02:00]}  Bxf1 {[%clk 0:00:05]} 29. cxd6 {[%clk 0:02:00]}  Qe8 {[%clk 0:00:05]} 30. dxe7 {[%clk 0:01:48]}  Bb5 {[%clk 0:00:06]} 31. a4 {[%clk 0:01:47]}  Bc6 {[%clk 0:00:05]} 32. Rxc6 {[%clk 0:01:48]}  Nxc6 {[%clk 0:00:05]} 33. Qxd7 {[%clk 0:01:48]}  Qxd7 {[%clk 0:00:00]} 34. Rxd7 {[%clk 0:01:49]} 1-0

[Event "January 2 Early 2024"]
[Site "https://www.chess.com"]
[Date "2024.01.02"]
[Round "7"]
[White "Kambrath, Yannick"]
[Black "Gao, Raymond"]
[Result "0-1"]
[Board "112"]
[TimeControl "180+1"]
[WhiteFideId "20632525"]
[BlackFideId "2629429"]
[WhiteElo "2534"]
[BlackElo "2355"]
[WhiteTeam "FRA"]
[BlackTeam "CAN"]
[WhiteClock "0:00:03"]
[BlackClock "0:00:34"]

1. e4 {[%clk 0:03:00]}  c5 {[%clk 0:02:59]} 2. Nf3 {[%clk 0:03:00]}  Nc6 {[%clk 0:02:59]} 3. Bb5 {[%clk 0:02:59]}  g6 {[%clk 0:02:58]} 4. Bxc6 {[%clk 0:02:59]}  dxc6 {[%clk 0:02:59]} 5. h3 {[%clk 0:02:58]}  Bg7 {[%clk 0:02:59]} 6. d3 {[%clk 0:02:49]}  Nf6 {[%clk 0:03:00]} 7. Nc3 {[%clk 0:02:48]}  O-O {[%clk 0:03:00]} 8. O-O {[%clk 0:02:47]}  Nd7 {[%clk 0:02:59]} 9. Be3 {[%clk 0:02:46]}  e5 {[%clk 0:02:58]} 10. Qd2 {[%clk 0:02:46]}  Re8 {[%clk 0:02:57]} 11. Nh2 {[%clk 0:02:40]}  Nf8 {[%clk 0:02:57]} 12. Bh6 {[%clk 0:02:36]}  Ne6 {[%clk 0:02:53]} 13. Bxg7 {[%clk 0:02:35]}  Kxg7 {[%clk 0:02:54]} 14. Ne2 {[%clk 0:02:35]}  b6 {[%clk 0:02:28]} 15. Kh1 {[%clk 0:02:34]}  c4 {[%clk 0:02:03]} 16. Ng4 {[%clk 0:02:32]}  Qg5 {[%clk 0:01:55]} 17. Ne3 {[%clk 0:02:17]}  cxd3 {[%clk 0:01:46]} 18. cxd3 {[%clk 0:02:14]}  Nf4 {[%clk 0:01:28]} 19. Nxf4 {[%clk 0:02:08]}  exf4 {[%clk 0:01:29]} 20. Qc3+ {[%clk 0:01:53]}  Kg8 {[%clk 0:01:22]} 21. Nc4 {[%clk 0:01:20]}  f3 {[%clk 0:01:11]} 22. Rg1 {[%clk 0:00:49]}  Qh4 {[%clk 0:00:43]} 23. d4 {[%clk 0:00:04]}  Bxh3 {[%clk 0:00:35]} 24. g3 {[%clk 0:00:03]}  Bg2# {[%clk 0:00:34]} 0-1

[Event "January 2 Early 2024"]
[Site "https://www.chess.com"]
[Date "2024.01.02"]
[Round "7"]
[White "Petukhov, Dmitry"]
[Black "Rodriguez Avila, Alvaro"]
[Result "1-0"]
[Board "113"]
[TimeControl "180+1"]
[WhiteFideId "4142748"]
[BlackFideId "24570249"]
[WhiteElo "2525"]
[BlackElo "2284"]
[WhiteTeam "RUS"]
[BlackTeam "ESP"]
[WhiteClock "0:01:48"]
[BlackClock "0:00:05"]

1. e4 {[%clk 0:02:55]}  c5 {[%clk 0:03:00]} 2. c3 {[%clk 0:02:55]}  e5 {[%clk 0:02:58]} 3. d4 {[%clk 0:02:54]}  cxd4 {[%clk 0:02:58]} 4. cxd4 {[%clk 0:02:55]}  exd4 {[%clk 0:02:59]} 5. Nf3 {[%clk 0:02:55]}  Nc6 {[%clk 0:02:59]} 6. Bc4 {[%clk 0:02:55]}  Bb4+ {[%clk 0:02:55]} 7. Nbd2 {[%clk 0:02:54]}  Nf6 {[%clk 0:02:55]} 8. O-O {[%clk 0:02:53]}  O-O {[%clk 0:02:50]} 9. e5 {[%clk 0:02:52]}  Ng4 {[%clk 0:02:47]} 10. Re1 {[%clk 0:02:40]}  Re8 {[%clk 0:02:40]} 11. Qb3 {[%clk 0:02:36]}  Qe7 {[%clk 0:02:18]} 12. h3 {[%clk 0:02:35]}  Na5 {[%clk 0:02:04]} 13. Bxf7+ {[%clk 0:02:28]}  Qxf7 {[%clk 0:01:33]} 14. Qxb4 {[%clk 0:02:27]}  Nc6 {[%clk 0:01:32]} 15. Qd6 {[%clk 0:02:27]}  Re6 {[%clk 0:01:26]} 16. Qd5 {[%clk 0:02:17]}  Ngxe5 {[%clk 0:01:04]} 17. Ng5 {[%clk 0:02:15]}  Qf5 {[%clk 0:00:51]} 18. Nxe6 {[%clk 0:02:10]}  dxe6 {[%clk 0:00:51]} 19. Qe4 {[%clk 0:02:09]}  Nd3 {[%clk 0:00:41]} 20. Qxf5 {[%clk 0:02:04]}  exf5 {[%clk 0:00:41]} 21. Re8+ {[%clk 0:02:03]}  Kf7 {[%clk 0:00:42]} 22. Rh8 {[%clk 0:02:02]}  h6 {[%clk 0:00:26]} 23. Nc4 {[%clk 0:02:02]}  Ke6 {[%clk 0:00:09]} 24. Bd2 {[%clk 0:02:00]}  b5 {[%clk 0:00:09]} 25. Na5 {[%clk 0:01:58]}  Nxa5 {[%clk 0:00:08]} 26. Bxa5 {[%clk 0:01:59]}  Bb7 {[%clk 0:00:09]} 27. Rxa8 {[%clk 0:01:59]}  Bxa8 {[%clk 0:00:10]} 28. Rd1 {[%clk 0:01:58]}  Nxb2 {[%clk 0:00:07]} 29. Rxd4 {[%clk 0:01:58]}  Bd5 {[%clk 0:00:07]} 30. Rb4 {[%clk 0:01:48]}  a6 {[%clk 0:00:05]} 31. Rxb2 {[%clk 0:01:48]} 1-0

[Event "January 2 Early 2024"]
[Site "https://www.chess.com"]
[Date "2024.01.02"]
[Round "7"]
[White "Jahnz, Fabian"]
[Black "Shapiro, Viktor"]
[Result "0-1"]
[Board "115"]
[TimeControl "180+1"]
[WhiteFideId "4653300"]
[BlackFideId "4175700"]
[WhiteElo "2311"]
[BlackElo "2521"]
[WhiteTeam "GER"]
[BlackTeam "RUS"]
[WhiteClock "0:00:06"]
[BlackClock "0:00:54"]

1. e4 {[%clk 0:02:58]}  Nf6 {[%clk 0:03:00]} 2. e5 {[%clk 0:02:58]}  Nd5 {[%clk 0:03:00]} 3. d4 {[%clk 0:02:59]}  d6 {[%clk 0:03:00]} 4. exd6 {[%clk 0:02:57]}  cxd6 {[%clk 0:03:00]} 5. Nf3 {[%clk 0:02:58]}  Bg4 {[%clk 0:03:00]} 6. c3 {[%clk 0:02:58]}  g6 {[%clk 0:03:00]} 7. h3 {[%clk 0:02:57]}  Bxf3 {[%clk 0:02:51]} 8. Qxf3 {[%clk 0:02:58]}  e6 {[%clk 0:02:50]} 9. Bc4 {[%clk 0:02:51]}  Nb6 {[%clk 0:02:47]} 10. Bb5+ {[%clk 0:02:52]}  Nc6 {[%clk 0:02:39]} 11. Bxc6+ {[%clk 0:02:51]}  bxc6 {[%clk 0:02:39]} 12. Qxc6+ {[%clk 0:02:52]}  Qd7 {[%clk 0:02:40]} 13. Qxd7+ {[%clk 0:02:49]}  Kxd7 {[%clk 0:02:40]} 14. Nd2 {[%clk 0:02:50]}  f5 {[%clk 0:02:35]} 15. O-O {[%clk 0:02:47]}  Bg7 {[%clk 0:02:32]} 16. a4 {[%clk 0:02:44]}  a5 {[%clk 0:02:32]} 17. Nb3 {[%clk 0:02:41]}  Rhb8 {[%clk 0:02:28]} 18. Nd2 {[%clk 0:02:30]}  Rb7 {[%clk 0:02:19]} 19. b3 {[%clk 0:02:27]}  Rc8 {[%clk 0:02:18]} 20. Bb2 {[%clk 0:02:25]}  d5 {[%clk 0:02:04]} 21. f4 {[%clk 0:02:17]}  Nc4 {[%clk 0:01:59]} 22. bxc4 {[%clk 0:01:16]}  Rxb2 {[%clk 0:01:58]} 23. Rfd1 {[%clk 0:01:16]}  dxc4 {[%clk 0:01:54]} 24. Rab1 {[%clk 0:01:14]}  Rc2 {[%clk 0:01:49]} 25. Rb7+ {[%clk 0:01:13]}  Rc7 {[%clk 0:01:49]} 26. Rxc7+ {[%clk 0:01:14]}  Kxc7 {[%clk 0:01:50]} 27. Nxc4 {[%clk 0:01:13]}  Rxc3 {[%clk 0:01:50]} 28. Ne5 {[%clk 0:00:55]}  Ra3 {[%clk 0:01:41]} 29. Rc1+ {[%clk 0:00:53]}  Kb7 {[%clk 0:01:41]} 30. Rc4 {[%clk 0:00:51]}  Bf8 {[%clk 0:01:35]} 31. Nc6 {[%clk 0:00:45]}  Kb6 {[%clk 0:01:34]} 32. Nd8 {[%clk 0:00:44]}  Bb4 {[%clk 0:01:30]} 33. Nxe6 {[%clk 0:00:43]}  Rxa4 {[%clk 0:01:30]} 34. d5 {[%clk 0:00:34]}  Ra1+ {[%clk 0:01:28]} 35. Kh2 {[%clk 0:00:34]}  Rd1 {[%clk 0:01:29]} 36. Rc6+ {[%clk 0:00:31]}  Ka7 {[%clk 0:01:19]} 37. Rc7+ {[%clk 0:00:30]}  Kb8 {[%clk 0:01:20]} 38. Rxh7 {[%clk 0:00:28]}  a4 {[%clk 0:01:14]} 39. Rh8+ {[%clk 0:00:27]}  Ka7 {[%clk 0:01:14]} 40. Rh7+ {[%clk 0:00:27]}  Kb6 {[%clk 0:01:14]} 41. Rh8 {[%clk 0:00:22]}  Rxd5 {[%clk 0:01:11]} 42. Rb8+ {[%clk 0:00:22]}  Ka5 {[%clk 0:01:10]} 43. Nc7 {[%clk 0:00:20]}  Rc5 {[%clk 0:01:06]} 44. Ne6 {[%clk 0:00:19]}  Rb5 {[%clk 0:01:04]} 45. Ra8+ {[%clk 0:00:18]}  Kb6 {[%clk 0:01:05]} 46. Nd4 {[%clk 0:00:18]}  Ra5 {[%clk 0:01:04]} 47. Rb8+ {[%clk 0:00:18]}  Kc5 {[%clk 0:01:03]} 48. Ne6+ {[%clk 0:00:17]}  Kc4 {[%clk 0:01:03]} 49. Rc8+ {[%clk 0:00:17]}  Kb3 {[%clk 0:01:02]} 50. Nd4+ {[%clk 0:00:17]}  Kb2 {[%clk 0:01:01]} 51. Rc2+ {[%clk 0:00:18]}  Kb1 {[%clk 0:01:01]} 52. Rc4 {[%clk 0:00:18]}  Bd2 {[%clk 0:00:58]} 53. Nf3 {[%clk 0:00:16]}  Bc1 {[%clk 0:00:58]} 54. Ne1 {[%clk 0:00:15]}  a3 {[%clk 0:00:57]} 55. Nd3 {[%clk 0:00:15]}  Bb2 {[%clk 0:00:58]} 56. Rb4 {[%clk 0:00:15]}  Kc2 {[%clk 0:00:57]} 57. Ne1+ {[%clk 0:00:15]}  Kc3 {[%clk 0:00:57]} 58. Rb8 {[%clk 0:00:14]}  a2 {[%clk 0:00:57]} 59. Rc8+ {[%clk 0:00:15]}  Kd2 {[%clk 0:00:57]} 60. Nc2 {[%clk 0:00:15]}  Ra4 {[%clk 0:00:55]} 61. g3 {[%clk 0:00:14]}  Bc3 {[%clk 0:00:55]} 62. Na1 {[%clk 0:00:08]}  Bxa1 {[%clk 0:00:55]} 63. g4 {[%clk 0:00:06]}  Rxf4 {[%clk 0:00:54]} 0-1

[Event "January 2 Early 2024"]
[Site "https://www.chess.com"]
[Date "2024.01.02"]
[Round "7"]
[White "Yashmetov, Mikhail"]
[Black "RaneshRatnesan"]
[Result "0-1"]
[Board "116"]
[TimeControl "180+1"]
[WhiteFideId "24198900"]
[WhiteElo "2518"]
[BlackElo "2255"]
[WhiteTeam "RUS"]
[WhiteClock "0:00:00"]
[BlackClock "0:00:13"]

1. c4 {[%clk 0:02:59]}  c6 {[%clk 0:02:50]} 2. Nc3 {[%clk 0:02:59]}  d5 {[%clk 0:02:50]} 3. d4 {[%clk 0:02:59]}  Nf6 {[%clk 0:02:50]} 4. g3 {[%clk 0:02:59]}  Bf5 {[%clk 0:02:44]} 5. Bg2 {[%clk 0:02:59]}  e6 {[%clk 0:02:44]} 6. Nf3 {[%clk 0:02:59]}  Nbd7 {[%clk 0:02:43]} 7. Qb3 {[%clk 0:02:58]}  Qb6 {[%clk 0:02:43]} 8. c5 {[%clk 0:02:59]}  Qxb3 {[%clk 0:02:37]} 9. axb3 {[%clk 0:02:59]}  a6 {[%clk 0:02:36]} 10. b4 {[%clk 0:02:59]}  Rd8 {[%clk 0:02:34]} 11. O-O {[%clk 0:02:59]}  h6 {[%clk 0:02:34]} 12. Bf4 {[%clk 0:02:59]}  Be7 {[%clk 0:02:34]} 13. Nd2 {[%clk 0:02:59]}  O-O {[%clk 0:02:30]} 14. Nb3 {[%clk 0:02:57]}  g5 {[%clk 0:02:27]} 15. Bd6 {[%clk 0:02:44]}  Bxd6 {[%clk 0:02:22]} 16. cxd6 {[%clk 0:02:45]}  Ne8 {[%clk 0:02:01]} 17. Nc5 {[%clk 0:01:52]}  Nxd6 {[%clk 0:01:58]} 18. f3 {[%clk 0:01:51]}  Bg6 {[%clk 0:01:51]} 19. e4 {[%clk 0:01:48]}  Nxc5 {[%clk 0:01:42]} 20. bxc5 {[%clk 0:01:43]}  Nb5 {[%clk 0:01:32]} 21. Nxb5 {[%clk 0:01:39]}  axb5 {[%clk 0:01:27]} 22. e5 {[%clk 0:01:38]}  Ra8 {[%clk 0:01:27]} 23. Kf2 {[%clk 0:01:37]}  Ra6 {[%clk 0:01:22]} 24. Rxa6 {[%clk 0:01:34]}  bxa6 {[%clk 0:01:23]} 25. Ra1 {[%clk 0:01:34]}  Ra8 {[%clk 0:01:23]} 26. b4 {[%clk 0:01:34]}  f6 {[%clk 0:00:51]} 27. Bh3 {[%clk 0:01:26]}  Kf7 {[%clk 0:00:51]} 28. Re1 {[%clk 0:01:24]}  Bf5 {[%clk 0:00:47]} 29. Bxf5 {[%clk 0:00:45]}  exf5 {[%clk 0:00:48]} 30. Ra1 {[%clk 0:00:43]}  fxe5 {[%clk 0:00:46]} 31. dxe5 {[%clk 0:00:43]}  Ke6 {[%clk 0:00:40]} 32. f4 {[%clk 0:00:43]}  d4 {[%clk 0:00:39]} 33. Ke2 {[%clk 0:00:38]}  Kd5 {[%clk 0:00:37]} 34. Kd3 {[%clk 0:00:38]}  Ra7 {[%clk 0:00:15]} 35. Ra2 {[%clk 0:00:34]}  Ra8 {[%clk 0:00:16]} 36. Ra1 {[%clk 0:00:34]}  g4 {[%clk 0:00:16]} 37. h3 {[%clk 0:00:31]}  h5 {[%clk 0:00:17]} 38. hxg4 {[%clk 0:00:31]}  hxg4 {[%clk 0:00:17]} 39. Rh1 {[%clk 0:00:31]}  a5 {[%clk 0:00:13]} 40. Rh6 {[%clk 0:00:31]}  axb4 {[%clk 0:00:14]} 41. Rd6+ {[%clk 0:00:20]}  Kxc5 {[%clk 0:00:14]} 42. Rf6 {[%clk 0:00:16]}  Ra3+ {[%clk 0:00:14]} 43. Kd2 {[%clk 0:00:15]}  Rxg3 {[%clk 0:00:14]} 44. Rxf5 {[%clk 0:00:15]}  Kd5 {[%clk 0:00:13]} 45. Rf6 {[%clk 0:00:13]}  Re3 {[%clk 0:00:12]} 46. Rd6+ {[%clk 0:00:12]}  Kc5 {[%clk 0:00:12]} 47. Rg6 {[%clk 0:00:12]}  g3 {[%clk 0:00:13]} 48. e6 {[%clk 0:00:12]}  b3 {[%clk 0:00:13]} 49. f5 {[%clk 0:00:11]}  b2 {[%clk 0:00:13]} 50. Kc2 {[%clk 0:00:12]}  Re2+ {[%clk 0:00:12]} 51. Kb1 {[%clk 0:00:12]}  g2 {[%clk 0:00:12]} 52. Rg3 {[%clk 0:00:06]}  Re1+ {[%clk 0:00:09]} 53. Kxb2 {[%clk 0:00:05]}  g1=Q {[%clk 0:00:10]} 54. Rxg1 {[%clk 0:00:05]}  Rxg1 {[%clk 0:00:11]} 55. e7 {[%clk 0:00:06]}  Re1 {[%clk 0:00:11]} 56. f6 {[%clk 0:00:05]}  Kd6 {[%clk 0:00:11]} 57. Kc2 {[%clk 0:00:04]}  Rxe7 {[%clk 0:00:11]} 58. fxe7 {[%clk 0:00:04]}  Kxe7 {[%clk 0:00:12]} 59. Kd3 {[%clk 0:00:05]}  c5 {[%clk 0:00:12]} 60. Ke4 {[%clk 0:00:00]}  Kd6 {[%clk 0:00:13]} 0-1